Cogmind - Beta 15 @@@ ROGUE MODE // 2025.10.08 @ 23:57:49 Player: Blue Cog Result: Destroyed by Y-64 Sentinel with KE Penetrator Performance ------------- Evolutions (5) 2500 Regions Visited (15) 3000 Robots Destroyed (345) 1725 Value Destroyed (11598) 11598 Prototype IDs (54) 1080 Alien Tech Used (0) 0 Bonus (2422) 2422 TOTAL SCORE: 22325 Bonus ------- High Alert Combat Kills 2136 Follower Combat Kills 162 Aligned with FarCom 300 Friendly Fire -176 Cogmind --------- Core Integrity 0/1000 Matter 222/300 Energy 99/100 System Corruption 1% Temperature Cool (0) Movement Core (50) Location -4/Proximity Caves Parts ------- > --- POWER (2) -------- (None) > --- PROPULSION (4) --- (None) > --- UTILITY (7) ------ Advanced Targeting Computer Hacking Suite Improved Hacking Suite > --- WEAPON (4) ------- (None) > --- INVENTORY (5) ---- Enhanced Nuclear Core High-capacity Matter Pod (200) Improved Transmission Jammer Mini Drone Bay (0/3) Peak State ------------ > --- POWER ------------ Enhanced Nuclear Core Light Angular Momentum Engine > --- PROPULSION ------- Carbon-fiber Leg Improved Carbon-fiber Leg Improved Carbon-fiber Leg Thunder Leg > --- UTILITY ---------- Advanced Cooling System Huge Storage Unit Experimental Sensor Array Advanced Targeting Computer Hardened Heavy Armor Plating Improved Hardlight Generator > --- WEAPON ----------- Heavy Phase Cannon Gauss Cannon Mini Assault Cannon Rocket Array > --- INVENTORY -------- Enhanced Nuclear Core Light Angular Momentum Engine Carbon-fiber Leg Carbon-fiber Leg Advanced Cooling System High-capacity Matter Pod Improved Matter Compressor Improved Transmission Jammer Hacking Suite Improved Hacking Suite Skeleton Box System Restoration Module Tractor Beam Mini Drone Bay Mini Drone Bay Mini Drone Bay Beamcaster Proton Cannon Long-range Proton Cannon Advanced Beam Cannon Mass Driver Missile Launcher Heavy Missile Launcher Precision Grenade Launcher Maul [Rating: 90] Favorites ----------- Power Enhanced Nuclear Core Engine Cooled Ion Engine Power Core Enhanced Nuclear Core Propulsion Light Treads Treads Light Treads Leg Carbon-fiber Leg Wheel Armored Wheel Hover Unit Improved Airjet Flight Unit Improved Cesium-ion Thruster Utility Huge Storage Unit Device Advanced Cooling System Storage Huge Storage Unit Processor Advanced Targeting Computer Hackware System Shield Protection Hardened Medium Armor Plating Weapon Light Cannon Energy Gun Improved Heavy Laser Energy Cannon Advanced Beam Cannon Ballistic Gun Precision Assault Rifle Ballistic Cannon Light Cannon Launcher Mini Grenade Launcher Impact Weapon Maul Build | -11 -10 -10 -9 -9 -9 -8 -8 -7 -7 -7 -5 -5 -5 -5 -4 ------- Run | Yrd Mat Min Mat Min Exi Min Mat Fac Sto Rec Fac Upp Upp War Pro Slots Evolved 10 | . . . 2 . . . 2 2 . . 4 . . . . Power 1 | . . . . . . . . . . . 1 . . . . Propulsion 2 | . . . . . . . 1 1 . . . . . . . Utility 5 | . . . 1 . . . 1 1 . . 2 . . . . Weapon 2 | . . . 1 . . . . . . . 1 . . . . Parts Attached 159 | 7 14 2 19 9 . . 22 20 32 1 23 3 5 2 . Power 15 | 1 2 . 4 1 . . . 1 2 . 2 1 1 . . Engine 12 | 1 2 . 4 1 . . . 1 . . 1 1 1 . . Core 3 | . . . . . . . . . 2 . 1 . . . . Reactor . | . . . . . . . . . . . . . . . . Propulsion 40 | 2 5 . 3 1 . . 4 5 13 . 4 1 2 . . Treads 18 | . . . . . . . 3 4 11 . . . . . . Leg 9 | . 2 . . . . . . . . . 4 1 2 . . Wheel 10 | 2 3 . 3 1 . . 1 . . . . . . . . Hover 2 | . . . . . . . . 1 1 . . . . . . Flight 1 | . . . . . . . . . 1 . . . . . . Utility 52 | 2 5 . 6 3 . . 6 6 11 1 9 1 . 2 . Device 18 | 1 2 . . 1 . . 1 1 5 1 5 1 . . . Storage 6 | 1 2 . 1 . . . . 1 . . 1 . . . . Processor 6 | . . . 3 . . . 2 1 . . . . . . . Hackware 5 | . . . . . . . 1 . 1 . 1 . . 2 . Protection 17 | . 1 . 2 2 . . 2 3 5 . 2 . . . . Artifact . | . . . . . . . . . . . . . . . . Weapon 52 | 2 2 2 6 4 . . 12 8 6 . 8 . 2 . . Energy Gun 9 | 1 . . 1 . . . 3 1 1 . 1 . 1 . . Energy Cannon 7 | . 1 . . . . . . . 3 . 3 . . . . Ballistic Gun 7 | 1 . . . . . . 5 1 . . . . . . . Ballistic Cannon 17 | . 1 1 5 . . . 3 4 . . 3 . . . . Launcher 10 | . . 1 . 4 . . . 2 2 . 1 . . . . Special Weapon . | . . . . . . . . . . . . . . . . Impact Weapon 2 | . . . . . . . 1 . . . . . 1 . . Slashing Weapon . | . . . . . . . . . . . . . . . . Piercing Weapon . | . . . . . . . . . . . . . . . . Special Melee Weapon . | . . . . . . . . . . . . . . . . Unidentified Prototypes 21 | . . . 2 1 . . 3 5 6 1 3 . . . . Corrupted Parts 1 | . . . . . . . . . . . . . . 1 . System Corruption 1 | . . . . . . . . . . . . . . 1 . Parts Lost 61 | . 3 1 2 6 . 1 3 4 11 . 12 2 7 7 2 Power 8 | . 1 . . 1 . . . 1 1 . 1 1 1 1 . Propulsion 24 | . 1 . 1 1 . . 1 3 7 . 4 . 3 3 . Utility 11 | . . . . 1 . . . . 1 . 5 . 1 2 1 Weapon 18 | . 1 1 1 3 . 1 2 . 2 . 2 1 2 1 1 Highest Loss Streak 7 | . 1 1 1 5 . 1 2 2 3 . 7 2 5 7 2 To Critical Strikes . | . . . . . . . . . . . . . . . . Average Backups 21 | 1 12 14 21 21 19 19 23 24 23 24 22 21 21 19 4 Power 1 | . 1 1 2 1 1 1 1 1 1 2 1 2 1 1 1 Propulsion 2 | 1 2 2 1 . . . 1 2 4 5 3 . . . . Utility 11 | . 6 8 13 15 15 15 14 13 10 9 9 9 11 10 2 Weapon 5 | . 1 3 4 4 3 2 4 5 5 7 7 8 8 7 . Tool/Special . | . . . . . . . . . . . . . . . . Unused Backups 31 | . 5 . 3 1 . . 3 4 5 . 1 . . 6 3 Power 8 | . 2 . . . . . 1 3 1 . . . . . 1 Propulsion 3 | . 2 . . . . . . . 1 . . . . . . Utility 16 | . 1 . 2 1 . . 2 1 3 . 1 . . 3 2 Weapon 4 | . . . 1 . . . . . . . . . . 3 . Tool/Special . | . . . . . . . . . . . . . . . . Average Slot Usage (%) 95 | . 96 100 98 93 100 91 98 98 98 99 98 93 84 75 27 Engine 6 | . 13 14 11 9 11 11 9 6 . . 1 4 9 9 . Core 2 | . . . . . . . . . 6 7 9 5 1 . . Treads 13 | . . . . . . . 2 29 28 30 17 . . . . Leg 3 | . 16 . . . . . . . . . 5 23 18 14 . Wheel 7 | . 11 28 20 21 22 22 23 . . . . . . . . Device 7 | . 8 14 1 . . . 2 1 10 14 15 17 12 10 9 Storage 8 | . 14 14 11 11 11 11 9 7 7 7 5 5 5 4 . Processor 8 | . . . 9 11 11 11 11 13 9 7 5 5 5 5 5 Hackware 2 | . . . . . . . 2 7 3 . 1 . . . 11 Protection 7 | . 5 . 10 10 11 11 9 6 4 7 9 5 5 4 . Energy Gun 2 | . 8 . . . . . . . 3 6 1 . 3 4 . Energy Cannon 4 | . 8 10 . . . . . . 7 15 11 9 4 4 . Ballistic Gun 2 | . 3 . . . . . 8 4 2 . . . . . . Ballistic Cannon 11 | . 5 17 32 12 22 22 15 11 3 . 4 11 10 9 . Launcher 2 | . . . . 16 11 3 . . 1 . 1 . . . . Impact Weapon 1 | . . . . . . . 1 4 2 . 2 . . . . Peak Build Rating 90 | 7 10 10 21 27 22 21 33 46 60 57 81 90 90 73 28 Average Rating 40 | 5 8 9 16 20 21 20 27 40 48 46 68 85 75 66 21 On Entrance 33 | . 7 10 10 20 21 22 21 33 43 47 47 79 90 73 19 Naked Turns . | . . . . . . . . . . . . . . . . Heaviest Build 156 | 15 92 92 106 105 103 103 111 114 118 118 156 156 156 156 4 Greatest Support 98 | 26 32 32 32 24 24 24 62 84 98 88 88 74 74 45 3 Greatest Overweight (x) 7 | . 2 2 6 7 4 4 4 1 4 1 2 2 3 4 1 Average Overweight (x) 2 | . 1 2 3 3 4 4 1 1 1 1 1 1 2 1 . Largest Inventory Capacity 25 | 8 25 25 25 25 25 25 25 25 25 25 25 25 25 25 5 Average Capacity 24 | 7 15 25 25 25 25 25 25 25 25 25 25 25 25 23 5 Most Carried 25 | 2 15 15 25 25 20 20 25 25 25 25 25 25 25 21 5 Average Carried 22 | 1 12 14 21 21 19 19 23 24 23 25 23 21 21 19 4 Final Capacity 25 | 8 25 25 25 25 25 25 25 25 25 25 25 25 25 5 5 Final Carried 25 | 2 15 14 25 19 20 19 25 25 25 25 19 25 21 5 4 Class Distribution -------------------- 24% | Mutant 19% | Tank 17% | Skirmisher 17% | Gunner 9% | Commander-Tank 5% | Scavenger-Tank 3% | Scavenger-Mutant Dominant Class ---------------- Mutant | -10/Materials Mutant | -10/Mines Gunner | -9/Materials Gunner | -9/Mines Gunner | -9/Exiles Mutant | -8/Mines Skirmisher | -8/Materials Mutant | -7/Factory Skirmisher | -7/Storage Commander-Tank | -7/Recycling Tank | -5/Factory Gunner | -5/Upper Caves Scavenger-Tank | -5/Upper Caves Scavenger-Tank | -5/Warlord Hacker-Mutant | -4/Proximity Caves Resources | -11 -10 -10 -9 -9 -9 -8 -8 -7 -7 -7 -5 -5 -5 -5 -4 ----------- Run | Yrd Mat Min Mat Min Exi Min Mat Fac Sto Rec Fac Upp Upp War Pro Matter Collected 8903 | 324 258 249 1056 494 . 103 775 1826 1280 130 1675 230 353 8 142 Remotely 1035 | . . . . . . . . . . . 792 122 121 . . Salvage Created 12143 | 207 606 181 1134 239 . 104 849 2227 2651 431 2597 515 388 . 14 Parts 572 | 15 30 10 77 23 . 6 56 84 106 16 97 33 17 . 2 Haulers Intercepted 12 | . 2 . 4 . . . 3 2 1 . . . . . . Recyclers Shooed 13 | 2 1 1 . 1 . . . . 1 2 5 . . . . Parts Field Recycled . | . . . . . . . . . . . . . . . . Retrieved Matter . | . . . . . . . . . . . . . . . . Parts Self-Destructed 25 | . . . . . . . . . . . . 9 11 . 5 Prevented . | . . . . . . . . . . . . . . . . Kills | -11 -10 -10 -9 -9 -9 -8 -8 -7 -7 -7 -5 -5 -5 -5 -4 ------- Run | Yrd Mat Min Mat Min Exi Min Mat Fac Sto Rec Fac Upp Upp War Pro Combat Hostiles Destroyed 258 | . 14 4 26 23 . 7 18 40 40 4 46 18 16 . 2 Guns 27 | . 11 . . . . . 3 5 8 . . . . . . Cannons 111 | . 3 2 25 1 . 2 8 20 17 3 20 5 5 . . AOE 111 | . . 2 . 22 . 5 7 14 12 . 24 12 11 . 2 Classes Destroyed 21 | 3 5 . 3 2 . . . 3 1 1 2 . . . 1 Worker 22 | 2 . . 2 6 . 1 . 5 1 . 5 . . . . Builder 16 | . 1 1 2 2 . . 1 3 3 . 3 . . . . Tunneler 9 | 5 . . . . . . . 3 . . 1 . . . . Hauler 12 | . 2 . 4 . . . 3 2 1 . . . . . . Recycler 25 | 1 . 1 4 1 . . 3 3 2 3 7 . . . . Mechanic 3 | . . . . . . . . . . . 3 . . . . Operator 1 | . 1 . . . . . . . . . . . . . . Drone 1 | . . . . . . . . . . . . . . . 1 Watcher 8 | . . . 1 . . . 2 2 2 . 1 . . . . Swarmer 63 | . 3 2 9 11 . 4 7 . . . 9 10 7 . 1 Grunt 109 | . 11 2 8 . . 3 6 27 21 1 21 3 6 . . Brawler 5 | . . . . . . . . 1 1 . 2 1 . . . Duelist 4 | . . . 1 . . . . . 2 . . . 1 . . Protector 1 | . . . . . . . . . 1 . . . . . . Sentry 34 | . . . 8 . . . 5 4 12 3 1 . 1 . . Demolisher 2 | . . . . 2 . . . . . . . . . . . Hunter 6 | . . . . . . . . 1 1 . 4 . . . . Programmer 18 | . . . . . . . . 7 2 . 8 . 1 . . Heavy 1 | . . . . . . . . . . . 1 . . . . Scientist 1 | . . . . . . . . . . 1 . . . . . Assembled 10 | . . . . 10 . . . . . . . . . . . Thug 5 | . . . . . . . . . 1 . . 4 . . . Best Kill Streak 19 | 6 8 3 10 14 . 4 6 9 10 2 19 5 7 . 1 Combat Bots Only 12 | . 6 2 8 12 . 4 4 9 7 1 11 5 7 . 1 Max Kills in Single Turn 6 | 1 1 3 1 4 . 3 3 3 4 1 6 5 3 . 1 Gunslinging . | . . . . . . . . . . . . . . . . Exploded 5 | . . 2 . 4 . 3 3 3 3 . 3 5 3 . 1 Melee . | . . . . . . . . . . . . . . . . Uniques/NPCs Destroyed . | . . . . . . . . . . . . . . . . Combat | -11 -10 -10 -9 -9 -9 -8 -8 -7 -7 -7 -5 -5 -5 -5 -4 -------- Run | Yrd Mat Min Mat Min Exi Min Mat Fac Sto Rec Fac Upp Upp War Pro Hostile Shots Fired 1482 | . 56 12 62 42 . 6 61 187 589 39 197 25 79 71 56 Missed 501 | . 15 . 18 10 . 3 18 53 218 17 63 8 27 23 28 Hits 981 | . 41 12 44 32 . 3 43 134 371 22 134 17 52 48 28 Melee 5 | . . . . . . . . . 4 . . . 1 . . Projectile 976 | . 41 12 44 32 . 3 43 134 367 22 134 17 51 48 28 AOE 17 | . . . . 17 . . . . . . . . . . . Critical Strikes 28 | . . . . 1 . . 4 9 1 . 4 3 4 1 1 Damage Taken 13504 | . 461 154 626 946 . 168 611 1795 3084 137 2917 407 836 818 544 Core 1802 | . 51 29 88 106 . 13 47 143 304 12 238 62 70 185 454 Absorbed by Shields 1397 | . . . . . . . 31 18 295 61 488 6 282 216 . Redirected to Shielding 10 | . 10 . . . . . . . . . . . . . . Regen/Repaired (Parts) 183 | . . . . . . . . 183 . . . . . . . Core Remaining (%) 68 | 100 . 68 . . . 48 91 . . 34 . . . . . Volleys Fired 572 | 18 61 10 94 36 . 6 52 83 81 7 84 11 27 . 2 Largest 4 | 2 2 2 3 3 . 2 3 3 3 3 4 4 4 . 1 Hottest 266 | 70 110 90 93 90 . 60 92 120 201 198 266 238 252 . 39 Shots Fired 1315 | 35 98 15 206 62 . 10 119 215 210 21 230 31 61 . 2 Gun 308 | 35 86 . . . . . 47 53 69 7 7 . 4 . . Cannon 890 | . 12 14 206 29 . 7 67 139 121 14 207 27 47 . . Launcher 117 | . . 1 . 33 . 3 5 23 20 . 16 4 10 . 2 Special . | . . . . . . . . . . . . . . . . Kinetic 796 | 18 31 8 206 29 . 7 114 192 70 . 76 14 31 . . Thermal 402 | 17 67 6 . . . . . . 120 21 138 13 20 . . Explosive 74 | . . 1 . 33 . 3 5 . . . 16 4 10 . 2 Electromagnetic 43 | . . . . . . . . 23 20 . . . . . . Robot Hit Streak 21 | 13 18 6 12 6 . 5 12 18 21 11 16 6 10 . 2 Robot Miss Streak 5 | 3 2 2 5 2 . 1 4 3 2 1 4 3 2 . . Penetration Max . | . . . . . . . . . . . . . . . . Secondary Targets 2 | . 2 . . . . . . . . . . . . . . Max Gunslinging Chain 1 | . 1 . . . . . . . . . . . . . . Shots Hit Robots 835 | 25 76 9 105 29 . 6 77 157 143 16 140 14 37 . 1 Core Hits 650 | 9 28 7 45 61 . 11 42 87 88 8 188 39 35 . 2 Critical Kills 8 | 1 . . . . . . 1 2 1 1 1 1 . . . Critical Parts Destroyed 6 | . . . . . . . . 5 1 . . . . . . Critical Strikes 46 | 2 6 1 6 1 . 1 5 10 4 1 6 1 2 . . Burn 10 | 1 6 . . . . . . . 1 . 1 . 1 . . Meltdown 4 | . . . . . . . . . 1 1 1 1 . . . Destroy 3 | 1 . . . . . . 1 1 . . . . . . . Blast 22 | . . 1 6 1 . 1 4 3 1 . 4 . 1 . . Smash 7 | . . . . . . . . 6 1 . . . . . . Melee Attacks 64 | . . . . . . . 6 22 11 . 25 . . . . Impact 64 | . . . . . . . 6 22 11 . 25 . . . . Slashing . | . . . . . . . . . . . . . . . . Piercing . | . . . . . . . . . . . . . . . . Sneak Attacks 15 | . . . . . . . . 11 2 . 2 . . . . Combat Hostiles . | . . . . . . . . . . . . . . . . Follow-up Attacks . | . . . . . . . . . . . . . . . . Damage Inflicted 31976 | 311 1020 338 2028 2113 . 625 1705 5579 5312 505 8620 1392 2188 . 240 Guns 4248 | 311 860 . . . . . 520 819 1342 152 174 . 70 . . Cannons 13344 | . 138 152 2028 327 . 96 790 2458 2012 261 3788 393 901 . . Explosions 12906 | . . 157 . 1786 . 529 395 1392 1778 . 4413 999 1217 . 240 Melee 1279 | . . . . . . . . 903 170 . 206 . . . . Ramming 199 | . 22 29 . . . . . 7 10 92 39 . . . . Kinetic 10633 | 137 295 83 2028 327 . 96 1310 3277 1204 . 1182 194 500 . . Thermal 7734 | 174 703 69 . . . 166 . 191 2355 413 2993 199 471 . . Explosive 9330 | . . 157 . 1786 . 363 395 . . . 4173 999 1217 . 240 Electromagnetic 2801 | . . . . . . . . 1201 1573 . 27 . . . . Impact 1279 | . . . . . . . . 903 170 . 206 . . . . Slashing . | . . . . . . . . . . . . . . . . Piercing . | . . . . . . . . . . . . . . . . Highest Corruption 4 | . 4 4 1 1 1 1 . 3 3 . . . . 1 1 Average Corruption 1 | . 3 4 1 1 1 1 . 1 2 . . . . 1 1 Corruption Purged 3 | . . . . . . . . . 3 . . . . . . Corruption Blocked . | . . . . . . . . . . . . . . . . Effects 85 | . 20 4 2 12 7 2 . 30 7 . . . . . 1 Message Errors 25 | . 9 1 . 4 2 1 . 5 3 . . . . . . Matter Fused 15 | . 3 . 1 3 2 . . 5 1 . . . . . . Heat Flow Errors 17 | . 2 2 . 3 1 . . 5 3 . . . . . 1 Energy Discharges 2 | . 1 . . . . . . 1 . . . . . . . Parts Rejected 1 | . . . . . . . . 1 . . . . . . . Parts Fused 2 | . . . . . . . . 2 . . . . . . . Data Loss (minor) 12 | . 3 . 1 2 2 . . 4 . . . . . . . Data Loss (major) 4 | . 1 . . . . . . 3 . . . . . . . Misfires 3 | . . . . . . 1 . 2 . . . . . . . Alerts 2 | . 1 . . . . . . 1 . . . . . . . Weapon Failures 2 | . . 1 . . . . . 1 . . . . . . . Overload Shots . | . . . . . . . . . . . . . . . . Overflow Damage 1504 | . . . 29 185 . 16 17 758 163 2 261 5 43 . 25 Projectiles 201 | . . . 29 7 . . . 64 8 2 81 . 10 . . Explosions 440 | . . . . 178 . 16 17 57 60 . 49 5 33 . 25 Melee 863 | . . . . . . . . 637 95 . 131 . . . . Knockbacks 78 | . . 1 13 5 . 1 7 28 4 1 11 . 7 . . Impact 8 | . . 1 . . . . . 4 1 1 1 . . . . Kinetic 64 | . . . 11 5 . 1 6 21 3 . 10 . 7 . . Secondary 6 | . . . 2 . . . 1 3 . . . . . . . Self-Inflicted Damage 1218 | . . 25 . 158 . 136 31 197 17 . 472 81 46 . 55 Shots 45 | . . 1 . 5 . 5 2 9 3 . 13 3 2 . 2 Rammed 14 | . . 1 . . . . . 3 1 7 2 . . . . Targets Rammed 22 | . 4 1 . . . . . 3 1 10 3 . . . . Kicked 4 | . 4 . . . . . . . . . . . . . . Crushed 4 | . . . . . . . . . . 3 1 . . . . Highest Temperature 412 | 101 234 158 197 274 279 11 73 332 412 136 326 306 334 313 160 Average Temperature 79 | 44 54 34 39 80 149 3 24 81 111 57 100 134 148 158 89 Received Heat Transfer 3480 | . 219 45 147 60 . 9 289 735 963 44 524 198 193 . 54 Effects 7 | . 1 . . . 1 . . . 3 . 1 . 1 . . Shutdowns 1 | . . . . . . . . . 1 . . . . . . Energy Bleed 4 | . 1 . . . 1 . . . . . 1 . 1 . . Interference 1 | . . . . . . . . . 1 . . . . . . Damage (minor) 1 | . . . . . . . . . 1 . . . . . . Siege Activations . | . . . . . . . . . . . . . . . . Martial Activations . | . . . . . . . . . . . . . . . . Shielding Activations . | . . . . . . . . . . . . . . . . Robots Disrupted 1 | . . . . . . . . . 1 . . . . . . Combat Hostiles 1 | . . . . . . . . . 1 . . . . . . Robots Corrupted 11 | . . . 1 . . . . 6 3 . 1 . . . . Combat Hostiles 4 | . . . 1 . . . . 1 2 . . . . . . Parts Fried 24 | . . . 1 . . . . 11 10 . 2 . . . . Impact Corruptions 26 | . . . 1 . . . . 19 3 . 3 . . . . Robots Melted 5 | . . . . . . . . . 1 1 2 1 . . . Combat Hostiles 5 | . . . . . . . . . 1 1 2 1 . . . Parts Melted 27 | . 6 . . . . . . . 10 1 7 3 . . . Heat Transferred 12153 | 592 2442 148 . . . 250 . 150 3387 629 3667 259 629 . . Parts Sabotaged . | . . . . . . . . . . . . . . . . Parts Stolen . | . . . . . . . . . . . . . . . . Parts Stripped . | . . . . . . . . . . . . . . . . Power Chain Reactions 7 | . . . . . . . . 4 3 . . . . . . Alert | -11 -10 -10 -9 -9 -9 -8 -8 -7 -7 -7 -5 -5 -5 -5 -4 ------- Run | Yrd Mat Min Mat Min Exi Min Mat Fac Sto Rec Fac Upp Upp War Pro Maximum Alert Level 4 | . . . 1 1 . . 1 3 3 2 4 . . . . Low Security (%) 53 | 100 100 100 42 96 . 100 80 50 . 55 20 . . . . Level 1 19 | . . . 57 3 . . 19 14 6 42 10 . . . . Level 2 9 | . . . . . . . . 5 55 1 13 . . . . Level 3 15 | . . . . . . . . 28 38 . 35 . . . . Level 4 2 | . . . . . . . . . . . 19 . . . . Level 5 . | . . . . . . . . . . . . . . . . High Security . | . . . . . . . . . . . . . . . . Max Security . | . . . . . . . . . . . . . . . . Peak Influence 1539 | 20 148 70 390 228 . 104 281 972 1065 419 1539 . . . . Initial 440 | . 6 4 17 148 . . 23 124 440 399 257 . . . . Average 303 | 4 57 27 197 89 . 61 72 353 648 174 693 . . . . Influence Increases 9112 | 40 408 135 983 492 . 221 598 1486 1310 312 2352 310 350 . 115 Destroy 0b10 Robot/C 4900 | . 280 80 560 260 . 140 360 800 780 100 920 280 320 . 20 Destroy 0b10 Robot/NC 490 | 40 20 10 65 45 . 5 45 90 50 15 100 . . . 5 Destroy Leader 1080 | . 64 20 180 40 . 20 90 208 226 . 172 30 30 . . Allied During Kill 21 | . . . 6 . . . . . . 15 . . . . . Successful Hack 168 | . 11 . 26 5 . . 34 27 32 14 19 . . . . Select Force Hacks 240 | . . . 60 . . . . 30 . 150 . . . . . Disable Machine 750 | . . . 15 30 . 30 15 270 135 . 255 . . . . Anti-Garrison Action 150 | . . . . . . . . . . . 150 . . . . Destroy Structure 778 | . 3 10 11 112 . 26 39 61 57 3 456 . . . . Advance Influence 250 | . . . . . . . . . . . 250 . . . . Partial Spotted 30 | . 15 . . . . . . . . . 15 . . . . Lose Combat Pursuer 255 | . 15 15 60 . . . 15 . 30 15 15 . . . 90 Influence Decreases 9042 | 30 405 103 648 865 7 160 384 792 1254 1320 838 948 727 516 45 Entered New Map 2889 | . 4 9 28 232 7 . 38 151 529 626 10 568 171 516 . Time Decay 5341 | 30 371 94 580 511 . 150 316 601 595 614 618 350 486 . 25 Lost Part 513 | . 30 . 20 43 . 10 30 40 110 . 120 20 70 . 20 Lost Ally 299 | . . . 20 79 . . . . 20 80 90 10 . . . Squads Dispatched 57 | . 4 . 4 . . . . 18 9 . 21 . 1 . . Investigation 16 | . 1 . 2 . . . . 7 1 . 4 . 1 . . Extermination 13 | . . . . . . . . 7 2 . 4 . . . . Reinforcement 16 | . 3 . 2 . . . . 3 4 . 4 . . . . Assault 7 | . . . . . . . . . 2 . 5 . . . . Garrison 5 | . . . . . . . . 1 . . 4 . . . . Intercept . | . . . . . . . . . . . . . . . . Searches Triggered . | . . . . . . . . . . . . . . . . Construction Impeded 2 | . . . . . . . . . 1 . 1 . . . . Haulers Reinforced 3 | . . . . . . . . 2 1 . . . . . . Active Scanning Responses . | . . . . . . . . . . . . . . . . Cargo Convoy Interrupts 1 | . . . . . . . . . . . 1 . . . . Stealth | -11 -10 -10 -9 -9 -9 -8 -8 -7 -7 -7 -5 -5 -5 -5 -4 --------- Run | Yrd Mat Min Mat Min Exi Min Mat Fac Sto Rec Fac Upp Upp War Pro Distress Signals 17 | . 3 . 5 . . . 4 . . 1 3 . . . 1 Communications Jammed . | . . . . . . . . . . . . . . . . Distress Signals . | . . . . . . . . . . . . . . . . Times Spotted 352 | . 25 3 49 31 . 4 22 47 47 6 61 20 17 2 18 Peak Tracking Total 17 | . 3 3 6 17 . 3 5 4 5 2 6 5 7 2 11 Tactical Retreats 13 | . 1 1 4 . . . 1 . 2 1 1 . . . 2 Traps | -11 -10 -10 -9 -9 -9 -8 -8 -7 -7 -7 -5 -5 -5 -5 -4 ------- Run | Yrd Mat Min Mat Min Exi Min Mat Fac Sto Rec Fac Upp Upp War Pro Traps Triggered 12 | . 3 . 3 . . . . 2 2 . . . . 2 . Indirectly 2 | . . . . . . . . 1 1 . . . . . . Trap Hack Attempts . | . . . . . . . . . . . . . . . . Triggered . | . . . . . . . . . . . . . . . . Disarmed . | . . . . . . . . . . . . . . . . Reprogrammed . | . . . . . . . . . . . . . . . . Reused . | . . . . . . . . . . . . . . . . Traps Extracted . | . . . . . . . . . . . . . . . . Installed . | . . . . . . . . . . . . . . . . Triggered . | . . . . . . . . . . . . . . . . Machines | -11 -10 -10 -9 -9 -9 -8 -8 -7 -7 -7 -5 -5 -5 -5 -4 ---------- Run | Yrd Mat Min Mat Min Exi Min Mat Fac Sto Rec Fac Upp Upp War Pro Machines Disabled 51 | . . . 1 2 . 2 1 18 9 . 18 . . . . Max in Single Turn 7 | . . . 1 1 . 1 1 7 2 . 5 . . . . Garrison Access 2 | . . . . . . . . . 1 . 1 . . . . Machines Repaired . | . . . . . . . . . . . . . . . . Machines Dismantled . | . . . . . . . . . . . . . . . . Machines Sabotaged . | . . . . . . . . . . . . . . . . Overloaded Fab Kills . | . . . . . . . . . . . . . . . . Hacking | -11 -10 -10 -9 -9 -9 -8 -8 -7 -7 -7 -5 -5 -5 -5 -4 --------- Run | Yrd Mat Min Mat Min Exi Min Mat Fac Sto Rec Fac Upp Upp War Pro Machines Accessed 60 | . 4 . 10 1 1 . 6 12 5 11 9 . 1 . . Terminals 39 | . 4 . 6 1 . . 6 7 4 4 6 . 1 . . Fabricators 1 | . . . . . . . . 1 . . . . . . . Repair Stations 2 | . . . . . . . . 2 . . . . . . . Recycling Units 8 | . . . 2 . . . . 1 . 5 . . . . . Scanalyzers 4 | . . . 2 . . . . 1 . . 1 . . . . Garrison Access 3 | . . . . . . . . . 1 . 2 . . . . Total Hacks 194 | . 10 . 34 4 1 . 25 28 20 42 27 . 3 . . Successful 110 | . 3 . 21 2 1 . 14 14 8 36 8 . 3 . . Failed 83 | . 6 . 13 2 . . 11 14 12 6 19 . . . . Catastrophic 21 | . 1 . 6 . . . . 5 3 1 5 . . . . Database Lockouts 1 | . 1 . . . . . . . . . . . . . . Manual 79 | . 5 . 8 2 1 . 10 17 10 10 16 . . . . Terminals 127 | . 10 . 18 4 . . 25 20 17 10 20 . 3 . . Fabricators 1 | . . . . . . . . 1 . . . . . . . Repair Stations 3 | . . . . . . . . 3 . . . . . . . Recycling Units 9 | . . . 2 . . . . 1 . 6 . . . . . Scanalyzers 19 | . . . 14 . . . . 3 . . 2 . . . . Garrison Access 8 | . . . . . . . . . 3 . 5 . . . . Terminal Hacks 67 | . 3 . 5 1 1 . 12 4 3 30 5 . 3 . . Record 35 | . . . . . . . 3 1 . 26 2 . 3 . . Part Schematic 1 | . . . . . . . . . . . 1 . . . . Robot Schematic 2 | . . . . . . . . . 1 1 . . . . . Robot Analysis 5 | . 1 . 2 . . . . 1 . 1 . . . . . Prototype ID Bank 7 | . 1 . 2 . . . 3 1 . . . . . . . Level Access Points 1 | . . . . . . . 1 . . . . . . . . Branch Access Points 2 | . . . . . . . 1 . . . 1 . . . . Terminal Index 1 | . . . . . . . 1 . . . . . . . . Locate Traps 1 | . . . . . . . . . 1 . . . . . . Hauler Manifests 1 | . . . . . . . 1 . . . . . . . . Registered Components 5 | . 1 . 1 . . . 1 1 1 . . . . . . Zone Layout 3 | . . . . 1 . . 1 . . . 1 . . . . Proto ID Catalog 1 | . . . . . 1 . . . . . . . . . . Release Object 2 | . . . . . . . . . . 2 . . . . . Fabricator Hacks 1 | . . . . . . . . 1 . . . . . . . Network Status 1 | . . . . . . . . 1 . . . . . . . Repair Station Hacks . | . . . . . . . . . . . . . . . . Recycling Unit Hacks . | . . . . . . . . . . . . . . . . Scanalyzer 16 | . . . 14 . . . . 2 . . . . . . . Insert Component 8 | . . . 7 . . . . 1 . . . . . . . Analyze 8 | . . . 7 . . . . 1 . . . . . . . Garrison Access Hacks 1 | . . . . . . . . . 1 . . . . . . Seal Access 1 | . . . . . . . . . 1 . . . . . . Unauthorized Hacks 25 | . . . 2 1 . . 2 7 4 6 3 . . . . Terminals 15 | . . . . 1 . . 2 4 4 1 3 . . . . Track 1 | . . . . 1 . . . . . . . . . . . Assimilate 2 | . . . . . . . . . 1 . 1 . . . . Botnet 12 | . . . . . . . 2 4 3 1 2 . . . . Fabricators . | . . . . . . . . . . . . . . . . Repair Stations 2 | . . . . . . . . 2 . . . . . . . Patch 2 | . . . . . . . . 2 . . . . . . . Recycling Units 8 | . . . 2 . . . . 1 . 5 . . . . . Tunnel 8 | . . . 2 . . . . 1 . 5 . . . . . Scanalyzers . | . . . . . . . . . . . . . . . . Garrison Access . | . . . . . . . . . . . . . . . . Data Cores Recovered . | . . . . . . . . . . . . . . . . Used . | . . . . . . . . . . . . . . . . Hacking Detections 44 | . 4 . 7 . . . 5 9 4 5 9 . 1 . . Full Trace Events 8 | . . . . . . . . 3 1 . 3 . 1 . . Feedback Events . | . . . . . . . . . . . . . . . . Feedback Blocked . | . . . . . . . . . . . . . . . . Robot Schematics Acquired 2 | . . . . . . . . . 1 1 . . . . . Robots Built . | . . . . . . . . . . . . . . . . Authchips . | . . . . . . . . . . . . . . . . Time . | . . . . . . . . . . . . . . . . Total Robot Build Rating . | . . . . . . . . . . . . . . . . Part Schematics Acquired 9 | . . . 7 . . . . 1 . . 1 . . . . Parts Built . | . . . . . . . . . . . . . . . . Authchips . | . . . . . . . . . . . . . . . . Time . | . . . . . . . . . . . . . . . . Total Part Build Rating . | . . . . . . . . . . . . . . . . Parts Repaired . | . . . . . . . . . . . . . . . . Time . | . . . . . . . . . . . . . . . . Parts Recycled . | . . . . . . . . . . . . . . . . Recycled Matter . | . . . . . . . . . . . . . . . . Retrieved Matter . | . . . . . . . . . . . . . . . . Retrieved Components . | . . . . . . . . . . . . . . . . Parts Scanalyzed 8 | . . . 7 . . . . 1 . . . . . . . Part Schematics Acquired 8 | . . . 7 . . . . 1 . . . . . . . Parts Damaged 1 | . . . 1 . . . . . . . . . . . . Bothacking | -11 -10 -10 -9 -9 -9 -8 -8 -7 -7 -7 -5 -5 -5 -5 -4 ------------ Run | Yrd Mat Min Mat Min Exi Min Mat Fac Sto Rec Fac Upp Upp War Pro Used RIF Installer . | . . . . . . . . . . . . . . . . Robots Hacked . | . . . . . . . . . . . . . . . . Non-combat . | . . . . . . . . . . . . . . . . Combat . | . . . . . . . . . . . . . . . . Robot Hacks Applied . | . . . . . . . . . . . . . . . . Relay Couplers Released 1 | . . . . . . . . . . . 1 . . . . Machine Destruction 1 | . . . . . . . . . . . 1 . . . . Fabnet Peak Effective % . | . . . . . . . . . . . . . . . . Robots Rewired 10 | . . . . . . . . . . 10 . . . . . Allies Hacked . | . . . . . . . . . . . . . . . . Hacks Repelled . | . . . . . . . . . . . . . . . . Allies | -11 -10 -10 -9 -9 -9 -8 -8 -7 -7 -7 -5 -5 -5 -5 -4 -------- Run | Yrd Mat Min Mat Min Exi Min Mat Fac Sto Rec Fac Upp Upp War Pro Total Allies 19 | . . 1 . 5 . . . . 2 10 1 . . . . Largest Group 10 | . . 1 1 5 . . . . 2 10 4 . . . . Highest-Rated Group 178 | . . 31 31 86 . . . . 62 178 80 . . . . Highest-Rated Ally 32 | . . 31 31 31 . . . . 31 32 32 . . . . Total Orders 6 | . . . . . . . . . . . 2 2 . . 2 TUNNEL 1 | . . . . . . . . . . . 1 . . . . EXPLORE 3 | . . . . . . . . . . . 1 1 . . 1 RETURN 2 | . . . . . . . . . . . . 1 . . 1 Ally Attacks 50 | . . . 9 11 . . . . 10 17 3 . . . . Total Damage 990 | . . . 168 106 . . . . 84 587 45 . . . . Kills 9 | . . . 2 2 . . . . . 5 . . . . . Allies Corrupted . | . . . . . . . . . . . . . . . . Allies Melted . | . . . . . . . . . . . . . . . . Intel | -11 -10 -10 -9 -9 -9 -8 -8 -7 -7 -7 -5 -5 -5 -5 -4 ------- Run | Yrd Mat Min Mat Min Exi Min Mat Fac Sto Rec Fac Upp Upp War Pro Active Infowar (turns) 1889 | 4 72 . . 51 . . 543 116 . . . 787 316 . . Sensors 1270 | . . . . 51 . . . 116 . . . 787 316 . . Seismic 76 | 4 72 . . . . . . . . . . . . . . T.N.C. 543 | . . . . . . . 543 . . . . . . . . Robot Analysis Total 5 | . 1 . 2 . . . . 1 . 1 . . . . . Derelict Logs Recovered 3 | . . . . 1 . . . . . . . . . . 2 Drone Launches 10 | . . . . . . . . . . . 3 3 . . 4 Drone Recoveries 5 | . . . . . . . . . . . 1 2 . . 2 Exploration | -11 -10 -10 -9 -9 -9 -8 -8 -7 -7 -7 -5 -5 -5 -5 -4 ------------- Run | Yrd Mat Min Mat Min Exi Min Mat Fac Sto Rec Fac Upp Upp War Pro Turns Passed 19605 | 126 1105 268 1799 1606 534 318 1701 3674 1898 2030 2067 787 1262 228 202 Spaces Moved 8462 | 68 539 184 940 1004 355 155 822 1351 582 755 691 302 376 100 238 Core 277 | 1 . . . . . . . . . . . . . 38 238 Treads 3262 | . . . . . . . 64 1351 582 755 510 . . . . Legs 1205 | . 284 . . . . . . . . . 181 302 376 62 . Wheels 3718 | 67 255 184 940 1004 355 155 758 . . . . . . . . Hover . | . . . . . . . . . . . . . . . . Flight . | . . . . . . . . . . . . . . . . Fastest Speed 50 | 50 90 130 130 135 150 150 120 230 230 240 185 185 250 50 50 Average Speed 190 | 89 155 130 150 148 150 150 130 234 239 240 229 241 309 224 79 Slowest Speed 480 | 100 260 130 190 195 150 150 235 236 480 240 250 250 330 400 100 Overloaded Moves . | . . . . . . . . . . . . . . . . Propulsion Burnouts . | . . . . . . . . . . . . . . . . Robots Hopped . | . . . . . . . . . . . . . . . . Potential Cave-ins 2 | . . . . . . . . . . . 2 . . . . Cave-ins Triggered . | . . . . . . . . . . . . . . . . Exploration Rate (%) 57 | 4 85 53 82 99 86 28 50 37 80 97 33 57 64 18 43 Regions Visited 15 Branch Regions 10 Pre-discovered Areas 9 | . . . 2 1 . . . 1 . 5 . . . . . Known Exits Taken 3 | . . . . . . . 1 1 . . 1 . . . . Unknown Exits Taken 12 | 1 1 1 1 1 1 1 . . 1 1 . 1 1 1 . Scrap Searched 8 | . . 1 . 1 . . . . . . . 2 3 . 1 Spaces Dug 86 | . . . . . . . 19 10 8 . 42 . 7 . . Terrain Destroyed 915 | . . 10 5 193 . 34 41 53 53 3 270 75 148 . 30 Melee 45 | . . . . . . . 6 10 8 . 21 . . . . Projectile 105 | . . . 5 . . 1 . 18 28 3 33 5 12 . . AOE 765 | . . 10 . 193 . 33 35 25 17 . 216 70 136 . 30 Terrain Rammed . | . . . . . . . . . . . . . . . . Walls Destroyed . | . . . . . . . . . . . . . . . . Machines Disabled . | . . . . . . . . . . . . . . . . Actions | -11 -10 -10 -9 -9 -9 -8 -8 -7 -7 -7 -5 -5 -5 -5 -4 --------- Run | Yrd Mat Min Mat Min Exi Min Mat Fac Sto Rec Fac Upp Upp War Pro Total 10597 | 94 702 196 1152 1055 357 232 1339 1623 869 943 927 334 420 105 249 Wait 821 | . 54 . 67 . . 71 397 85 82 5 52 . 4 . 4 Move 8447 | 67 538 183 939 1003 354 154 821 1350 581 754 690 301 375 99 238 Hop . | . . . . . . . . . . . . . . . . Pick Up 116 | 2 19 . 20 2 1 . 15 16 18 . 12 10 1 . . Fast Attach 37 | 7 3 . . . . . 5 4 8 3 5 1 1 . . Attach 50 | . . 1 5 6 . 1 1 3 10 . 12 1 5 2 3 Detach 7 | . . . . . . . 1 . 2 1 1 . . . 2 Swap 211 | . 12 1 15 6 . . 31 35 59 3 35 7 7 . . Drop 89 | . 11 . 12 2 . . 10 21 16 2 8 3 . 4 . Fire 572 | 18 61 10 94 36 . 6 52 83 81 7 84 11 27 . 2 Melee 64 | . . . . . . . 6 22 11 . 25 . . . . Ram 1 | . . 1 . . . . . . . . . . . . . Kick 4 | . 4 . . . . . . . . . . . . . . Crush 17 | . . . . . . . . 3 1 10 3 . . . . Escape Stasis 1 | . . . . . . . . 1 . . . . . . . Rewire 160 | . . . . . 2 . . . . 158 . . . . . Trap . | . . . . . . . . . . . . . . . . Miscellaneous . | . . . . . . . . . . . . . . . . Route ------- -11/Scrapyard -10/Materials (discovered 3 exits: *Mat x2 / [*Min]) -10/Mines -9/Materials (discovered 4 exits: *Mat x3 / *Min) -9/Mines (discovered 4 exits: *Mat x2 / *Exi / [*Zio]) -9/Exiles (discovered 2 exits: [*Min x2]) -8/Mines -8/Materials (discovered 3 exits: *Fac x3) -7/Factory (discovered 3 exits: *Fac x2 / *Sto) -7/Storage (discovered 2 exits: *Fac / *Rec) -7/Recycling -5/Factory (discovered 2 exits: *Upp x2) -5/Upper Caves -5/Upper Caves (discovered 2 exits: [*Fac] / [*War]) -5/Warlord -4/Proximity Caves History --------- Turn | Location | Event 21 | -11/Scrapyard | Discovered new exit (range 15) 127 | -11/Scrapyard | Entered Materials 323 | -10/Materials | Build established: Mutant 530 | -10/Materials | Discovered new exit (range 15) 899 | -10/Materials | Build established: Scavenger-Mutant 1009 | -10/Materials | Central database locked down 1017 | -10/Materials | Discovered new exit (range 16) 1201 | -10/Materials | Discovered new exit (range 12) 1232 | -10/Materials | Entered Mines 1281 | -10/Mines | Build established: Mutant 1431 | -10/Mines | Discovered new exit (range 6) 1435 | -10/Mines | Received a Mining Laser from a helpful Derelict 1500 | -10/Mines | Entered Materials 1500 | -9/Materials | Accompanied by 1 ally 1500 | -9/Materials | Evolved 2 slots: Utility x1, Weapon x1 1832 | -9/Materials | Build established: Tank 2197 | -9/Materials | Discovered new exit (range 10) 2287 | -9/Materials | Destroyed 8 combat bots 2464 | -9/Materials | Build established: Gunner 2611 | -9/Materials | Discovered new exit (range 16) 3141 | -9/Materials | Discovered new exit (range 11) 3237 | -9/Materials | Discovered new exit (range 16) 3299 | -9/Materials | Entered Mines 3306 | -9/Mines | Received a Rocket Launcher from a helpful Derelict 3371 | -9/Mines | Discovered new exit (range 5) 3481 | -9/Mines | Found a damaged Exp. Sensor Array with a note attached 3484 | -9/Mines | Found Prototype Device 3484 | -9/Mines | Identified Exp. Sensor Array 3499 | -9/Mines | Learned location of Recycling (-7) 3510 | -9/Mines | A Derelict revealed a hidden shortcut to a safe place 3589 | -9/Mines | Assisted by bots powering up and referring to "LRC-V3" 3721 | -9/Mines | Discovered new exit (range 9) 3760 | -9/Mines | Assembled infested the area 3806 | -9/Mines | Met 8R-AWN 3817 | -9/Mines | Lost 5 allies 3828 | -9/Mines | Lost 5 parts (1p1n1u2w) 3830 | -9/Mines | Destroyed 12 combat bots 4301 | -9/Mines | Build established: Mutant 4866 | -9/Mines | Build established: Gunner 4899 | -9/Mines | Discovered new exit (range 5) 4905 | -9/Mines | Entered Exiles 4925 | -9/Exiles | Discovered new exit (range 15) 4943 | -9/Exiles | Welcomed by 8R-AWN 4967 | -9/Exiles | Met EX-HEX 5007 | -9/Exiles | Met EX-BIN 5028 | -9/Exiles | Aligned with FarCom system 5030 | -9/Exiles | Given EX-Vault access code 5064 | -9/Exiles | Opened EX-Vault 5075 | -9/Exiles | Found Skeleton Box 5104 | -9/Exiles | Warned to stay clear of 0b10 Research branches 5149 | -9/Exiles | Met EX-DEC 5230 | -9/Exiles | Visited The Gauntlet 5421 | -9/Exiles | Discovered new exit (range 12) 5439 | -9/Exiles | Left Exiles lab with Skeleton Box 5439 | -9/Exiles | Entered Mines 5660 | -8/Mines | Core integrity fell below 50% 5730 | -8/Mines | Discovered new exit (range 13) 5757 | -8/Mines | Entered Materials 5757 | -8/Materials | Evolved 2 slots: Propulsion x1, Utility x1 5948 | -8/Materials | Build established: Skirmisher 6334 | -8/Materials | Discovered new exit (range 12) 6757 | -8/Materials | Build established: Tank 6969 | -8/Materials | Identified exit to Factory 7354 | -8/Materials | Build established: Skirmisher 7458 | -8/Materials | Entered Factory 7458 | -7/Factory | Evolved 2 slots: Propulsion x1, Utility x1 8289 | -7/Factory | Discovered new exit (range 7) 8309 | -7/Factory | Identified exit to Factory 9103 | -7/Factory | Build established: Mutant 9331 | -7/Factory | Garrison activated, responded to threat 10006 | -7/Factory | Destroyed 9 combat bots 10301 | -7/Factory | Build established: Scavenger-Mutant 10348 | -7/Factory | Discovered exit to Factory (range 10) 10616 | -7/Factory | Build established: Mutant 11087 | -7/Factory | Discovered new exit (range 5) 11096 | -7/Factory | Identified exit to Storage 11132 | -7/Factory | Entered Storage 11198 | -7/Storage | Remotely autohacked Sealed Heavy Doors 11316 | -7/Storage | Lost 3 parts (1n1u1w) 11571 | -7/Storage | Lost 3 parts (2n1w) 11592 | -7/Storage | Remotely autohacked Sealed Heavy Doors 11803 | -7/Storage | Remotely autohacked Sealed Heavy Doors 12005 | -7/Storage | Build established: Skirmisher 12008 | -7/Storage | Remotely autohacked Sealed Heavy Doors 12102 | -7/Storage | Discovered exit to Factory (range 5) 12197 | -7/Storage | Met a pair of Derelict thieves 12247 | -7/Storage | Core integrity fell below 50% 12334 | -7/Storage | Destroyed 7 combat bots 12353 | -7/Storage | Remotely autohacked Sealed Heavy Doors 12785 | -7/Storage | Found Prototype Launcher 12785 | -7/Storage | Identified Rocket Array 13021 | -7/Storage | Remotely autohacked Sealed Blast Doors 13021 | -7/Storage | Discovered new exit (range 5) 13030 | -7/Storage | Entered Recycling 13282 | -7/Recycling | Build established: Tank 13605 | -7/Recycling | Build established: Commander-Tank 13691 | -7/Recycling | Discovered new exit (range 5) 14108 | -7/Recycling | Scanned before Scraplab entrance 14151 | -7/Recycling | Entered Scraplab 14182 | -7/Recycling | Discovered new exit (range 3) 14197 | -7/Recycling | Angered Scraplab inhabitants 14205 | -7/Recycling | Found Prototype Device 14205 | -7/Recycling | Identified Scrap Engine 14233 | -7/Recycling | Lost 3 allies 14458 | -7/Recycling | Lost 3 allies 15060 | -7/Recycling | Entered Factory 15060 | -5/Factory | Accompanied by 4 allies 15060 | -5/Factory | Evolved 4 slots: Power x1, Utility x2, Weapon x1 15212 | -5/Factory | Lost 4 allies 15429 | -5/Factory | Build established: Tank 16119 | -5/Factory | Garrison activated, responded to threat 16260 | -5/Factory | First assault squad dispatched 16269 | -5/Factory | Cargo convoy interrupted 16303 | -5/Factory | Garrison activated, responded to threat 16504 | -5/Factory | Identified exit to Upper Caves 16697 | -5/Factory | Lost 7 parts (1p3n2u1w) 16769 | -5/Factory | Destroyed 11 combat bots 17034 | -5/Factory | Build established: Skirmisher 17127 | -5/Factory | Entered Upper Caves 17419 | -5/Upper Caves | Build established: Gunner 17703 | -5/Upper Caves | Ambushed by wild Derelicts 17878 | -5/Upper Caves | Discovered new exit (range 10) 17914 | -5/Upper Caves | Entered another Upper Caves area 18019 | -5/Upper Caves | Discovered new exit (range 11) 18118 | -5/Upper Caves | Build established: Tank 18198 | -5/Upper Caves | Attracted the attention of an 0b10 base 18259 | -5/Upper Caves | Destroyed 7 combat bots 18266 | -5/Upper Caves | Lost 5 parts (1p2n1u1w) 18510 | -5/Upper Caves | Build established: Scavenger-Tank 18569 | -5/Upper Caves | Spotted B-75 Beast 18800 | -5/Upper Caves | Discovered new exit (range 14) 19176 | -5/Upper Caves | Entered Warlord 19296 | -5/Warlord | Attacked by Warlord forces 19345 | -5/Warlord | Spotted X2-4Y8(B) 19345 | -5/Warlord | Spotted IF-CT2(B) 19387 | -5/Warlord | Core integrity fell below 50% 19398 | -5/Warlord | Discovered new exit (range 14) 19404 | -5/Warlord | Entered Proximity Caves 19408 | -4/Proximity Caves | Unaware initiated a cargo recovery operation 19410 | -4/Proximity Caves | Lost 7 parts (1p3n2u1w) 19421 | -4/Proximity Caves | Learned Research terminal intel 19497 | -4/Proximity Caves | Learned location of 1 exit from Upper Caves 19582 | -4/Proximity Caves | Core integrity fell below 20% 19593 | -4/Proximity Caves | Attracted the attention of an 0b10 checkpoint 19606 | -4/Proximity Caves | Destroyed by Y-64 Sentinel with KE Penetrator Last Messages --------------- 19575_ Slug penetrates Wall. 19575_ Penetrated by Slug. 19575_ S-27 Virus destroyed. 19575_ Slug penetrates Wall. 19578_ Penetrated by Slug. 19578_ Slug penetrates Wall. 19581_ Penetrated by Slug. 19581_ Adv. Cooling System destroyed. 19581_ Acquired 112 matter. 19586_ Searching scrap... 19586_ Found Mak. Hover Unit. 19586_ Found Mak. Terrain Scanner. 19586_ Found Adv. Cryofiber Web. 19586_ Found Adv. Signal Interpreter. 19586_ Found 30 Matter. 19587_ Acquired 30 matter. 19588_ Penetrated by Slug. 19593_ Y-64 Sentinel: "INTERCEPTING UNREGISTERED DERELICT." 19595_ Slug penetrates Wall. Map ----- +----------------------------------------------------+ | ?????????????????????????????????????????????????? | | ?????????????????????????????????????????????????? | | ?????????????????????????????????????????????????? | | ?????????????????????????????????????????????????? | | ?????????????????????????????????????????????????? | | ?????????????????????????????????????????????????? | | ?????????????????????????????????????????????????? | | ??????????????? ??????????####??????????????????? | | ??????????????? #????????? ##?????????????????? | | ???????????????? ?????#???# ##????????????????? | | ????????? ?????? ##??## ?## #????????????????? | | ???????? ?????# ##?? ## #????????????????? | | ??????# #????# ##?? #?????????????????? | | ?????## #???# #??? #??????????????????? | | ?????# ##?# ##??## #???????????????????? | | ?????# ? ### #### #???????????????????? | | ????## ??# ## #???????????????????? | | ???## #??# ##???????????????????? | | ???# ?## n #Y ##????????????????????? | | ?? ## # ##?????????????????????? | | ???? # ##?????????????????????? | | ???????# #?????????????????????? | | ???????# #?????????????????????? | | ???????# ### ##?????????????????????? | | ???????# ## ####???????????????????? | | ???????## ### @ #???????????????????? | | ????????### #####?## ##???????????????????? | | ??????????# #??????## ### #????????????????????? | | ?????###??# ##??????###?####????????????????????? | | ????? #??# ####???????????????????????????????? | | ?????# #??# #???????????????????????????????? | | ?????# #?## ##???????????????????????????????? | | ?????# ### ##????????????????????????????????? | | ######!## #?????????????????????????????????? | | ! = #?????????????????????????????????? | | ! #??????????????????????????????? | | ##### ##??????????????????????????????? | | ????# ????????????????????????????? | | ????# ## ??????????????????????????? | | ????# #?#######??????????????????????????? | | ????## #?????????????????????????????????? | | ?????###########?????????????????????????????????? | | ?????????????????????????????????????????????????? | | ?????????????????????????????????????????????????? | | ?????????????????????????????????????????????????? | | ?????????????????????????????????????????????????? | | ?????????????????????????????????????????????????? | | ?????????????????????????????????????????????????? | | ?????????????????????????????????????????????????? | | #????????????????????????????????????????????????? | +----------------------------------------------------+ Best States ------------- Heat Dissipation 102 Energy Generation 31 Energy Capacity 800 Matter Stores 300 Matter Capacity 300 Sight Range 16 Robot Scan Range 20 Terrain Scan Density 10 Armor Coverage 600 Core Shielding 20 Evasion (%) 50 Targeting Accuracy 8 Recoil Reduction 4 Salvage Targeting 1 Offensive Hacking 22 Defensive Hacking 10 Item Schematics ----------------- Signal Interpreter | -9/Materials | Scanalyzed Lrg. Storage Unit | -9/Materials | Scanalyzed Huge Storage Unit | -9/Materials | Scanalyzed Arm. Wheel | -9/Materials | Scanalyzed Hcp. Matter Pod | -9/Materials | Scanalyzed Hrd. Medium Armor Plating | -9/Materials | Scanalyzed Mni. Grenade Launcher | -9/Materials | Scanalyzed Missile Launcher | -7/Factory | Scanalyzed Hvy. Shock Bomb Launcher | -5/Factory | Hacked Robot Schematics ------------------ M-28 Smith | -7/Storage | Hacked L-41 Fighter | -7/Recycling | Hacked Fabricated ------------ Nothing Repaired ---------- Nothing Alien Tech Used ----------------- None Achievements -------------- None Challenges ------------ None Game ------ Seed CentriumFieldRedistributor Manual? 0 Play Time 03:06:31 Cumulative 110.7 hours Start 2025.10.08 @ 10:03:47 End 2025.10.08 @ 23:57:49 Sessions 4 Manual Loads 0 Difficulty Rogue Special Mode None Game No. 67 Rogue 67 Adventurer 0 Explorer 0 Win Type - Total 2 Types 1/0/0/1/0/0/0/0/0/0 Lore% 43 Gallery% 49 Achievement% 51 Wizard Run 0 Options --------- Layout 1 ASCII 0 Keyboard 1 Movement Arrows Keybinds 0 Fullscreen 2 Font 24/Smallcaps Map View 50x35 Zoom Use 0% Tactical HUD 1 Map Filters NONE Filters NONE Steam 1 RUN: 58c23f1d-a0a7-4b99-aa1b-b8dc5e969a30